fUSD/lending_fUSD_20240913
["ID","MTS","AMOUNT","RATE_DAILY","PERIOD"]
[337907602,1726203045089,-357.0261533,0.00013237,2]
[337907604,1726203045100,-11872.8560743,0.00013237,2]
[337907695,1726203045956,-4341.26,0.00012964,2]
[337907697,1726203045966,-4755.38373114,0.00013237,2]
[337907700,1726203045980,-8947.21879473,0.00013237,2]
[337907702,1726203045993,-8943.78386462,0.00013237,2]
[337907704,1726203046004,-9077.54866152,0.00013237,2]
[337907706,1726203046015,-5036.03247279,0.00013237,2]
[337907708,1726203046024,-3907.8077621,0.00013238,2]
[337907719,1726203046127,-1536.35456676,0.00013238,2]
[337907780,1726203046713,-190.924,0.00013023,2]
[337907782,1726203046726,-200.0,0.00013023,2]
[337907784,1726203046736,-3700.04039943,0.00013238,2]
[337907786,1726203046745,-500.0,0.00013238,2]
[337907788,1726203046755,-666.76,0.00013238,2]
[337907790,1726203046764,-521.82,0.00013238,2]
[337907792,1726203046773,-435.74858091,0.00013238,2]
[337907882,1726203047679,-64.25141909,0.00013238,2]
[337907884,1726203047688,-500.0,0.00013238,2]
[337907886,1726203047698,-500.0,0.00013238,2]
[337907888,1726203047707,-65.48858091,0.00013238,2]
[337907890,1726203047719,-553.70141909,0.00013238,2]
[337907892,1726203047729,-298.79858091,0.00013238,2]
[337907945,1726203048358,-267.921,0.00013023,2]
[337907947,1726203048367,-752.75,0.000131,2]
[337907949,1726203048377,-357.7,0.000131,2]
[337907951,1726203048387,-150.0,0.000131,2]
[337907953,1726203048397,-201.20141909,0.00013238,2]
[337907955,1726203048407,-997.03,0.00013238,2]
[337907957,1726203048416,-500.0,0.00013238,2]
[337907959,1726203048426,-500.0,0.00013238,2]
[337907961,1726203048436,-777.14,0.00013238,2]
[337907963,1726203048447,-753.93,0.00013238,2]
[337907965,1726203048457,-1926.25,0.00013238,2]
[337907967,1726203048467,-502.16,0.00013238,2]
[337907969,1726203048476,-500.0,0.00013238,2]
[337907971,1726203048487,-500.0,0.00013238,2]
[337907973,1726203048496,-500.0,0.00013238,2]
[337907975,1726203048506,-500.0,0.00013238,2]
[337907977,1726203048515,-500.0,0.00013238,2]
[337907979,1726203048526,-677.51,0.00013238,2]
[337907981,1726203048535,-1134.49,0.00013238,2]
[337907983,1726203048545,-2903.27,0.00013238,2]
[337907985,1726203048555,-745.42,0.00013238,2]
[337907987,1726203048565,-669.44,0.00013238,2]
[337907989,1726203048574,-500.0,0.00013238,2]
[337907991,1726203048583,-3479.69,0.00013238,2]
[337907993,1726203048594,-500.0,0.00013238,2]
[337907995,1726203048603,-1800.92,0.00013238,2]
[337907997,1726203048614,-500.0,0.00013238,2]
[337907999,1726203048624,-4193.01,0.00013238,2]
[337908001,1726203048633,-952.34,0.00013238,2]
[337908003,1726203048643,-1638.64,0.00013238,2]
[337908005,1726203048653,-1588.5,0.00013238,2]
[337908007,1726203048662,-500.0,0.00013238,2]
[337908009,1726203048672,-4825.04,0.00013238,2]
[337908011,1726203048681,-1056.42,0.00013238,2]
[337908013,1726203048692,-399.32932257,0.00013238,2]
[337908015,1726203048702,-428.11697382,0.00013238,2]
[337908017,1726203048711,-4008.67,0.00013238,2]
[337908019,1726203048721,-2052.88,0.00013238,2]
[337908021,1726203048730,-592.09055312,0.00013238,2]
[337908022,1726203048740,-500.0,0.00013238,2]
[337908024,1726203048749,-3328.24,0.00013238,2]
[337908026,1726203048759,-3184.49,0.00013238,2]
[337908028,1726203048769,-1449.09,0.00013238,2]
[337908030,1726203048780,-12889.66,0.00013238,2]
[337908032,1726203048789,-5463.4,0.00013238,2]
[337908034,1726203048799,-3773.91,0.00013238,2]
[337908036,1726203048808,-4881.74,0.00013238,2]
[337908038,1726203048817,-500.0,0.00013238,2]
[337908040,1726203048827,-3174.39,0.00013238,2]
[337908042,1726203048836,-1866.2,0.00013238,2]
[337908044,1726203048845,-1894.68,0.00013238,2]
[337908046,1726203048854,-2200.22,0.00013238,2]
[337908048,1726203048864,-1042.04,0.00013238,2]
[337908050,1726203048873,-1798.72,0.00013238,2]
[337908052,1726203048887,-1461.3,0.00013238,2]
[337908054,1726203048896,-1343.98,0.00013238,2]
[337908056,1726203048907,-543.73,0.00013238,2]
[337908058,1726203048916,-901.56,0.00013238,2]
[337908060,1726203048927,-691.07,0.00013238,2]
[337908062,1726203048937,-6029.74,0.00013238,2]
[337908064,1726203048953,-500.0,0.00013238,2]
[337908067,1726203048963,-61365.92,0.00013238,2]
[337908069,1726203048973,-891.32,0.00013238,2]
[337908071,1726203048983,-500.0,0.00013238,2]
[337908073,1726203048995,-9748.25,0.00013238,2]
[337908075,1726203049005,-500.0,0.00013238,2]
[337908077,1726203049015,-4341.26,0.00013238,2]
[337908079,1726203049026,-2833.17,0.00013239,2]
[337908081,1726203049036,-500.0,0.00013239,2]
[337908083,1726203049046,-500.0,0.00013239,2]
[337908085,1726203049057,-500.0,0.00013239,2]
[337908087,1726203049067,-1811.69,0.00013239,2]
[337908089,1726203049077,-500.0,0.00013239,2]
[337908091,1726203049087,-1372.17,0.00013239,2]
[337908093,1726203049098,-500.0,0.00013239,2]
[337908095,1726203049109,-500.0,0.00013239,2]
[337908097,1726203049119,-500.0,0.00013239,2]
[337908099,1726203049129,-1127.14,0.00013239,2]
[337908101,1726203049139,-500.0,0.00013239,2]
[337908103,1726203049149,-3512.43,0.00013239,2]
[337908105,1726203049159,-500.0,0.00013239,2]
[337908107,1726203049169,-729.88,0.00013239,2]
[337908109,1726203049179,-905.84,0.00013239,2]
[337908111,1726203049189,-500.0,0.00013239,2]
[337908113,1726203049200,-500.0,0.00013239,2]
[337908115,1726203049211,-500.0,0.00013239,2]
[337908117,1726203049220,-3386.78,0.00013239,2]
[337908119,1726203049231,-500.0,0.00013239,2]
[337908121,1726203049241,-3831.7,0.00013239,2]
[337908123,1726203049252,-500.0,0.00013239,2]
[337908125,1726203049261,-165.56701606,0.00013239,2]
[337908127,1726203049271,-2752.14,0.00013239,2]
[337908129,1726203049281,-3790.23,0.00013239,2]
[337908131,1726203049292,-350.08228575,0.00013239,2]
[337908134,1726203049303,-824.26,0.00013239,2]
[337908135,1726203049312,-500.0,0.00013239,2]
[337908138,1726203049322,-962.98,0.00013239,2]
[337908140,1726203049332,-500.0,0.00013239,2]
[337908142,1726203049342,-3824.16,0.00013239,2]
[337908144,1726203049352,-500.0,0.00013239,2]
[337908146,1726203049362,-635.19610711,0.00013239,2]
[337908148,1726203049372,-500.0,0.00013239,2]
[337908150,1726203049382,-1052.95,0.00013239,2]
[337908152,1726203049392,-787.45,0.00013239,2]
[337908154,1726203049402,-500.0,0.00013239,2]
[337908156,1726203049411,-500.0,0.00013239,2]
[337908159,1726203049424,-700.05,0.00013239,2]
[337908161,1726203049434,-2877.56,0.00013239,2]
[337908163,1726203049450,-500.0,0.00013239,2]
[337908165,1726203049459,-500.0,0.00013239,2]
[337908167,1726203049469,-500.0,0.00013239,2]
[337908169,1726203049479,-500.0,0.00013239,2]
[337908171,1726203049489,-834.17,0.00013239,2]
[337908173,1726203049499,-500.0,0.00013239,2]
[337908175,1726203049509,-1118.2,0.00013239,2]
[337908177,1726203049519,-500.0,0.00013239,2]
[337908179,1726203049530,-500.0,0.00013239,2]
[337908181,1726203049542,-1740.96,0.00013239,2]
[337908183,1726203049553,-500.0,0.00013239,2]
[337908185,1726203049563,-500.0,0.00013239,2]
[337908188,1726203049573,-500.0,0.00013239,2]
[337908190,1726203049583,-500.0,0.00013239,2]
[337908192,1726203049593,-2083.57,0.00013239,2]
[337908194,1726203049603,-500.0,0.00013239,2]
[337908195,1726203049612,-2173.0,0.00013239,2]
[337908198,1726203049622,-500.0,0.00013239,2]
[337908200,1726203049632,-538.04,0.00013239,2]
[337908202,1726203049642,-500.0,0.00013239,2]
[337908204,1726203049652,-1656.59381252,0.00013239,2]
[337909773,1726203087862,357.5,0.00010202,2]
[337909774,1726203191250,500.0,0.0001209,2]
[337909775,1726203206951,250.0,0.0001209,2]
[337909776,1726203386824,672.06,0.00012086,2]
[337909777,1726203409917,156.27,0.00010959,2]
[337909778,1726203497261,23890.0,0.00012079,2]
[337909779,1726203533936,248.45,0.00012076,2]
[337909780,1726203545936,319.92,0.00012078,2]
[337909781,1726203546496,250.0,0.00012078,2]
[337909782,1726203577581,-357.5,0.00012466,2]
[337909783,1726203577602,-1800.84690269,0.00012763,2]
[337909784,1726203577622,-150.0,0.00012864,2]
[337909785,1726203577644,-353.1922,0.00012864,2]
[337909786,1726203577665,-6138.46089731,0.00012864,2]
[337909787,1726203617257,-1300.0,0.000129,4]
[337909788,1726203632503,-150.0,0.00012863,2]
[337909789,1726203632528,-1350.0,0.00012864,2]
[337909790,1726203687982,342.16,0.00010165,2]
[337909791,1726203705256,250.0,0.00012074,2]
[337909792,1726203876296,462.35,0.00011979,2]
[337909793,1726204072842,244.54,0.00011966,2]
[337909795,1726204105362,248.45,0.0001196,2]
[337909796,1726204123247,250.0,0.0001196,2]
[337909797,1726204126905,163.22,0.00010959,2]
[337909798,1726204130617,162.21073234,0.00012,7]
[337909801,1726204216090,344.44,0.00010029,2]
[337909814,1726204231567,-2000.0,0.000122,2]
[337909815,1726204231577,-344.44,0.00012293,2]
[337909816,1726204231586,-1300.0,0.000126,4]
[337909817,1726204231596,-2600.0,0.000127,4]
[337909818,1726204231605,-827.0,0.00012705,2]
[337909819,1726204231615,-3900.0,0.000128,4]
[337909820,1726204231625,-6095.38376458,0.00012862,2]
[337909821,1726204231637,-539.47059194,0.00012862,2]
[337909822,1726204231648,-12570.80502884,0.00012862,2]
[337909823,1726204231658,-168.46982081,0.00012863,2]
[337909824,1726204231667,-162.14826699,0.00012864,2]
[337909825,1726204231677,-9462.49020269,0.00012864,2]
[337909826,1726204231686,-5845.7676,0.00012864,2]
[337909827,1726204231695,-4546.94216423,0.00012865,2]
[337909828,1726204231705,-178.7473791,0.00012865,2]
[337909829,1726204231715,-237.85037377,0.00012865,2]
[337909830,1726204231724,-499.99,0.00012865,2]
[337909831,1726204231734,-150.0,0.00012899,2]
[337909832,1726204231745,-5200.0,0.000129,4]
[337909833,1726204231754,-357.7,0.000129,2]
[337909834,1726204231763,-357.7,0.000129,2]
[337909835,1726204231773,-714.04,0.000129,2]
[337909836,1726204231783,-357.7,0.000129,2]
[337909837,1726204231793,-357.7,0.000129,2]
[337909838,1726204231803,-357.7,0.000129,2]
[337909839,1726204231813,-266.81,0.00012932,14]
[337909840,1726204231822,-150.72,0.00012953,2]
[337909841,1726204231832,-150.72,0.00012953,2]
[337909842,1726204231842,-150.72,0.00012954,2]
[337909843,1726204231852,-500.0,0.00012961,2]
[337909844,1726204231862,-1291.61597463,0.00012961,2]
[337909845,1726204231875,-89.16402537,0.00012961,2]
[337909847,1726204231885,-224.84461235,0.00012962,2]
[337909849,1726204231898,-278.15093293,0.00012962,2]
[337909851,1726204231911,-172.53233676,0.00012962,2]
[337909853,1726204231921,-921.21,0.00012962,2]
[337909855,1726204231932,-1109.3109302,0.00012962,2]
[337909857,1726204231946,-2322.03073295,0.00012962,2]
[337909860,1726204231966,-751.39001507,0.00012962,2]
[337909862,1726204231978,-298.3,0.00012962,2]
[337909865,1726204231989,-4454.86832178,0.00012962,2]
[337909866,1726204231998,-1434.34,0.00012962,2]
[337909867,1726204232008,-8483.51,0.00012962,2]
[337909868,1726204232018,-56252.09,0.00012962,2]
[337909869,1726204232027,-3979.48,0.00012962,2]
[337909870,1726204232036,-500.0,0.00012962,2]
[337909871,1726204232046,-1962.62,0.00012962,2]
[337909872,1726204232055,-239.411345,0.00012962,2]
[337909873,1726204232064,-860.97,0.00012962,2]
[337909874,1726204232073,-2353.28,0.00012962,2]
[337909875,1726204232083,-3536.45,0.00012962,2]
[337909876,1726204232092,-1152.94,0.00012962,2]
[337909877,1726204232101,-7568.438511,0.00012962,2]
[337909878,1726204232110,-5722.4,0.00012962,2]
[337909879,1726204232120,-159.024738,0.00012962,2]
[337909880,1726204232130,-156.039042,0.00012962,2]
[337909881,1726204232139,-2709.99,0.00012962,2]
[337909882,1726204232149,-3371.11,0.00012962,2]
[337909883,1726204232160,-3189.72,0.00012962,2]
[337909884,1726204232170,-12612.31,0.00012962,2]
[337909885,1726204232179,-1337.01,0.00012962,2]
[337909886,1726204232190,-3843.6,0.00012962,2]
[337909887,1726204232199,-5723.66,0.00012962,2]
[337909888,1726204232211,-1456.12,0.00012962,2]
[337909889,1726204232221,-2753.52,0.00012962,2]
[337909890,1726204232235,-3668.67,0.00012962,2]
[337909891,1726204232246,-3674.61,0.00012962,2]
[337909892,1726204232255,-4422.95,0.00012962,2]
[337909893,1726204232264,-20572.59,0.00012962,2]
[337909894,1726204232273,-3050.88,0.00012962,2]
[337909895,1726204232283,-6270.98,0.00012962,2]
[337909896,1726204232292,-2919.12,0.00012962,2]
[337909897,1726204232301,-5030.42,0.00012962,2]
[337909898,1726204232310,-54185.45,0.00012962,2]
[337909899,1726204232321,-11815.52,0.00012962,2]
[337909900,1726204232331,-161.47114641,0.00012962,2]
[337909901,1726204232340,-5008.11,0.00012962,2]
[337909902,1726204232350,-3232.61,0.00012962,2]
[337909903,1726204232359,-8798.47,0.00012962,2]
[337909904,1726204232371,-3459.42,0.00012962,2]
[337909905,1726204232381,-4474.93,0.00012962,2]
[337909906,1726204232391,-3905.7,0.00012962,2]
[337909907,1726204232400,-2909.85,0.00012962,2]
[337909908,1726204232410,-1884.22,0.00012962,2]
[337909909,1726204232420,-1710.69,0.00012962,2]
[337909910,1726204232431,-11404.9,0.00012962,2]
[337909911,1726204232440,-2016.86,0.00012962,2]
[337909912,1726204232450,-955.21,0.00012962,2]
[337909913,1726204232460,-10164.47,0.00012962,2]
[337909914,1726204232469,-12667.51,0.00012962,2]
[337909915,1726204232480,-1648.83,0.00012962,2]
[337909916,1726204232491,-951.53,0.00012962,2]
[337909917,1726204232501,-3265.75,0.00012962,2]
[337909918,1726204232512,-1231.98,0.00012962,2]
[337909919,1726204232523,-1339.53,0.00012962,2]
[337909920,1726204232533,-500.0,0.00012962,2]
[337909921,1726204232542,-826.43,0.00012962,2]
[337909922,1726204232552,-1012.03,0.00012963,2]
[337909923,1726204232561,-633.48,0.00012963,2]
[337909924,1726204232570,-2597.07,0.00012963,2]
[337909925,1726204232579,-500.0,0.00012963,2]
[337909926,1726204232588,-500.0,0.00012963,2]
[337909927,1726204232597,-500.0,0.00012963,2]
[337909928,1726204232606,-500.0,0.00012963,2]
[337909929,1726204232615,-500.0,0.00012963,2]
[337909930,1726204232624,-500.0,0.00012963,2]
[337909931,1726204232634,-500.0,0.00012963,2]
[337909932,1726204232643,-317.00221168,0.00012963,2]
[337909933,1726204232653,-500.0,0.00012963,2]
[337909934,1726204232663,-3102.2,0.00012963,2]
[337909935,1726204232673,-3219.73,0.00012963,2]
[337909936,1726204232682,-500.0,0.00012963,2]
[337909937,1726204232691,-1660.72,0.00012963,2]
[337909938,1726204232700,-500.0,0.00012963,2]
[337909939,1726204232710,-500.0,0.00012963,2]
[337909940,1726204232720,-830.35,0.00012963,2]
[337909941,1726204232729,-500.0,0.00012963,2]
[337909942,1726204232738,-500.0,0.00012963,2]
[337909943,1726204232747,-28764.207,0.00012963,2]
[337909944,1726204232756,-3104.55,0.00012963,2]
[337909945,1726204232765,-500.0,0.00012963,2]
[337909946,1726204232774,-500.0,0.00012963,2]
[337909947,1726204232783,-1033.21,0.00012963,2]
[337909948,1726204232792,-913.95,0.00012963,2]
[337909949,1726204232801,-611.2,0.00012963,2]
[337909950,1726204232810,-500.0,0.00012963,2]
[337909951,1726204232819,-500.0,0.00012963,2]
[337909952,1726204232830,-500.0,0.00012963,2]
[337909953,1726204232840,-691.1,0.00012963,2]
[337909954,1726204232850,-669.05,0.00012963,2]
[337909955,1726204232860,-2522.79,0.00012963,2]
[337909956,1726204232869,-500.0,0.00012963,2]
[337909957,1726204232879,-1765.73,0.00012963,2]
[337909958,1726204232888,-500.0,0.00012963,2]
[337909959,1726204232897,-572.04466197,0.00012963,2]
[337909960,1726204232906,-755.57,0.00012963,2]
[337909961,1726204232916,-500.0,0.00012963,2]
[337909962,1726204232925,-500.0,0.00012963,2]
[337909963,1726204232935,-500.0,0.00012963,2]
[337909964,1726204232944,-500.0,0.00012963,2]
[337909965,1726204232953,-3505.48,0.00012963,2]
[337909966,1726204232963,-567.59,0.00012963,2]
[337909967,1726204232972,-433.97872173,0.00012963,2]
[337909968,1726204232981,-1039.95,0.00012963,2]
[337909969,1726204232990,-500.0,0.00012963,2]
[337909970,1726204233000,-500.0,0.00012963,2]
[337909971,1726204233010,-3512.39,0.00012963,2]
[337909972,1726204233019,-2661.33,0.00012963,2]
[337909973,1726204233278,-712.38,0.00012963,2]
[337909974,1726204233287,-500.0,0.00012963,2]
[337909975,1726204233297,-1717.33,0.00012963,2]
[337909976,1726204233307,-3474.38,0.00012963,2]
[337909977,1726204233316,-500.0,0.00012963,2]
[337909978,1726204233326,-683.3,0.00012963,2]
[337909979,1726204233335,-500.0,0.00012963,2]
[337909980,1726204233344,-641.72,0.00012963,2]
[337909981,1726204233354,-636.97539656,0.00012963,2]
[337909982,1726204233363,-882.73,0.00012963,2]
[337909983,1726204233372,-500.0,0.00012963,2]
[337909984,1726204233381,-500.0,0.00012963,2]
[337909985,1726204233391,-500.0,0.00012963,2]
[337909986,1726204233400,-500.0,0.00012963,2]
[337909987,1726204233410,-500.0,0.00012963,2]
[337909988,1726204233420,-500.0,0.00012963,2]
[337909989,1726204233430,-500.0,0.00012963,2]
[337909990,1726204233439,-500.0,0.00012963,2]
[337909991,1726204233448,-500.0,0.00012963,2]
[337909992,1726204233458,-721.83,0.00012963,2]
[337909993,1726204233467,-764.66,0.00012963,2]
[337909994,1726204233476,-621.05,0.00012963,2]
[337909995,1726204233485,-500.0,0.00012963,2]
[337909996,1726204233494,-500.0,0.00012963,2]
[337909997,1726204233504,-1025.01,0.00012963,2]
[337909998,1726204233514,-613.65,0.00012963,2]
[337909999,1726204233524,-1502.09,0.00012963,2]
[337910000,1726204233533,-2637.77,0.00012963,2]
[337910001,1726204233543,-500.0,0.00012963,2]
[337910002,1726204233552,-1595.88,0.00012963,2]
[337910003,1726204233561,-500.0,0.00012963,2]
[337910004,1726204233570,-1881.81,0.00012963,2]
[337910005,1726204233579,-500.0,0.00012963,2]
[337910006,1726204233589,-500.0,0.00012963,2]
[337910007,1726204233599,-775.34,0.00012963,2]
[337910008,1726204233609,-500.0,0.00012963,2]
[337910009,1726204233618,-500.0,0.00012963,2]
[337910010,1726204233627,-3908.86,0.00012963,2]
[337910011,1726204233637,-1909.94,0.00012963,2]
[337910012,1726204233646,-500.0,0.00012963,2]
[337910013,1726204233655,-500.0,0.00012963,2]
[337910014,1726204233671,-500.0,0.00012963,2]
[337910015,1726204233680,-4560.02,0.00012963,2]
[337910016,1726204233690,-500.0,0.00012963,2]
[337910017,1726204233699,-500.0,0.00012963,2]
[337910018,1726204233709,-968.39,0.00012963,2]
[337910019,1726204233718,-500.0,0.00012963,2]
[337910020,1726204233727,-2740.7,0.00012963,2]
[337910021,1726204233737,-500.0,0.00012963,2]
[337910022,1726204233746,-500.0,0.00012963,2]
[337910023,1726204233755,-1283.66,0.00012963,2]
[337910024,1726204233764,-500.0,0.00012963,2]
[337910025,1726204233774,-500.0,0.00012963,2]
[337910026,1726204233783,-2851.61,0.00012963,2]
[337910027,1726204233792,-1328.34,0.00012963,2]
[337910028,1726204233801,-500.0,0.00012963,2]
[337910029,1726204233811,-500.0,0.00012963,2]
[337910030,1726204233820,-509.17,0.00012963,2]
[337910031,1726204233830,-500.0,0.00012963,2]
[337910032,1726204233839,-500.0,0.00012963,2]
[337910033,1726204233849,-500.0,0.00012963,2]
[337910034,1726204233858,-2589.01,0.00012963,2]
[337910035,1726204233867,-500.0,0.00012963,2]
[337910036,1726204233877,-4057.28,0.00012963,2]
[337910037,1726204233887,-3114.08,0.00012963,2]
[337910038,1726204233896,-500.0,0.00012963,2]
[337910039,1726204233906,-500.0,0.00012963,2]
[337910040,1726204233918,-500.0,0.00012963,2]
[337910041,1726204233927,-1825.45,0.00012963,2]
[337910042,1726204233937,-1736.79,0.00012963,2]
[337910043,1726204233947,-500.0,0.00012963,2]
[337910044,1726204233957,-500.0,0.00012963,2]
[337910045,1726204233966,-659.95,0.00012963,2]
[337910046,1726204233975,-500.0,0.00012963,2]
[337910047,1726204233984,-598.81893917,0.00012963,2]
[337910048,1726204233994,-2221.29,0.00012963,2]
[337910049,1726204234003,-500.0,0.00012963,2]
[337910050,1726204234013,-1160.28,0.00012963,2]
[337910051,1726204234022,-817.05,0.00012963,2]
[337910052,1726204234032,-500.0,0.00012963,2]
[337910053,1726204234042,-500.0,0.00012963,2]
[337910054,1726204234051,-500.0,0.00012963,2]
[337910055,1726204234061,-3752.32,0.00012963,2]
[337910056,1726204234070,-500.0,0.00012963,2]
[337910057,1726204234080,-1940.77,0.00012963,2]
[337910058,1726204234090,-500.0,0.00012963,2]
[337910059,1726204234100,-501.94,0.00012963,2]
[337910060,1726204234110,-500.0,0.00012963,2]
[337910061,1726204234120,-3282.21,0.00012963,2]
[337910062,1726204234129,-3675.92,0.00012963,2]
[337910063,1726204234139,-1628.08,0.00012963,2]
[337910064,1726204234148,-1822.87,0.00012963,2]
[337910065,1726204234157,-686.55,0.00012963,2]
[337910066,1726204234168,-2312.72,0.00012963,2]
[337910067,1726204234177,-7770.79,0.00012963,2]
[337910068,1726204234187,-6347.07,0.00012963,2]
[337910069,1726204234197,-2065.39,0.00012963,2]
[337910070,1726204234206,-500.0,0.00012963,2]
[337910071,1726204234216,-1027.49,0.00012963,2]
[337910072,1726204234227,-2685.18,0.00012963,2]
[337910073,1726204234237,-4462.8,0.00012963,2]
[337910074,1726204234246,-500.0,0.00012963,2]
[337910075,1726204234256,-1874.25,0.00012963,2]
[337910076,1726204234266,-11604.44,0.00012963,2]
[337910077,1726204234276,-500.0,0.00012963,2]
[337910078,1726204234286,-1383.94,0.00012963,2]
[337910079,1726204234295,-3270.78,0.00012963,2]
[337910080,1726204234305,-2343.15,0.00012963,2]
[337910081,1726204234314,-317.39458698,0.00012963,2]
[337910082,1726204234324,-1662.46,0.00012963,2]
[337910083,1726204234334,-2692.2,0.00012963,2]
[337910084,1726204234344,-500.0,0.00012963,2]
[337910085,1726204234353,-893.04,0.00012963,2]
[337910086,1726204234363,-673.01,0.00012963,2]
[337910087,1726204234372,-1500.78,0.00012963,2]
[337910088,1726204234382,-1006.29,0.00012963,2]
[337910089,1726204234391,-1411.43,0.00012963,2]
[337910090,1726204234401,-3758.73,0.00012963,2]
[337910091,1726204234410,-500.0,0.00012963,2]
[337910092,1726204234420,-655.36,0.00012963,2]
[337910093,1726204234429,-2599.77,0.00012963,2]
[337910094,1726204234439,-500.0,0.00012963,2]
[337910095,1726204234449,-8871.75,0.00012963,2]
[337910096,1726204234458,-500.0,0.00012963,2]
[337910097,1726204234467,-1741.01,0.00012963,2]
[337910098,1726204234477,-500.0,0.00012963,2]
[337910099,1726204234487,-500.0,0.00012963,2]
[337910100,1726204234496,-2183.33,0.00012963,2]
[337910101,1726204234505,-502.23,0.00012963,2]
[337910102,1726204234515,-1082.85,0.00012963,2]
[337910103,1726204234524,-3201.67,0.00012963,2]
[337910104,1726204234533,-500.0,0.00012963,2]
[337910105,1726204234543,-3027.01,0.00012963,2]
[337910106,1726204234552,-1198.32,0.00012963,2]
[337910107,1726204234561,-501.32303539,0.00012963,2]
[337910108,1726204234571,-500.0,0.00012963,2]
[337910109,1726204234581,-500.0,0.00012963,2]
[337910110,1726204234591,-500.0,0.00012963,2]
[337910111,1726204234600,-1375.33,0.00012963,2]
[337910112,1726204234610,-500.0,0.00012963,2]
[337910113,1726204234620,-1250.81,0.00012963,2]
[337910114,1726204234630,-797.59489414,0.00012963,2]
[337910115,1726204234678,-976.47953325,0.00012963,2]
[337910116,1726204234690,-102.11557261,0.00012963,2]
[337910117,1726204234700,-500.0,0.00012963,2]
[337910118,1726204234710,-526.38,0.00012963,2]
[337910119,1726204234719,-798.43479545,0.00012963,2]
[337910120,1726204234730,-163.60520455,0.00012963,2]
[337910121,1726204234740,-298.96578204,0.00012963,2]
[337910122,1726204234751,-201.03421796,0.00012963,2]
[337910123,1726204234760,-1169.07,0.00012963,2]
[337910124,1726204234770,-500.0,0.00012963,2]
[337910125,1726204234779,-767.64489739,0.00012963,2]
[337910126,1726204234794,-5044.69510261,0.00012963,2]
[337910127,1726204234803,-500.0,0.00012963,2]
[337910128,1726204234813,-1013.40243103,0.00012963,2]
[337910129,1726204234824,-904.08234998,0.00012963,2]
[337910130,1726204234836,-479.95075682,0.00012963,2]
[337910131,1726204234847,-619.14994573,0.00012963,2]
[337910132,1726204234858,-327.85685687,0.00012963,2]
[337910133,1726204234869,-17.20765957,0.00012963,2]
[337910134,1726204234878,-500.0,0.00012963,2]
[337910135,1726204234888,-500.0,0.00012963,2]
[337910136,1726204234897,-848.48483338,0.00012963,2]
[337910137,1726204234909,-505.38615579,0.00012963,2]
[337910138,1726204234935,-1736.47786761,0.00012963,2]
[337910139,1726204234947,-1343.84114322,0.00012963,2]
[337910140,1726204234956,-3725.83,0.00012963,2]
[337910141,1726204234965,-597.25,0.00012963,2]
[337910142,1726204234974,-1389.4,0.00012963,2]
[337910143,1726204234983,-6145.28,0.00012963,2]
[337910144,1726204234992,-818.66,0.00012963,2]
[337910145,1726204235001,-4305.18,0.00012963,2]
[337910146,1726204235011,-61412.06,0.00012963,2]